{"text_format":"3","workbook":"xlsx","n_sheets":2,"sheets":["Start","Bröllopsbudget"],"read":"whole","date_system":"1900"}

{"sheet":"Start","index":0,"n_rows":7,"n_cols":2,"rows_kept":7}
[null,"OM DEN HÄR MALLEN"]
[null,"Använd den här mallen för att logga dina faktiska bröllopsutgifter och sätt upp dem mot budgeterade belopp."]
[null,"Ange utgifter för kläder, dekorationer, gåvor, blommor, musik, fotografering, mottagning, trycksaker, transport och övriga utgifter i respektive tabell."]
[null,"Totala estimerade och totala faktiska utgifter beräknas automatiskt."]
[null,"Obs! "]
[null,"Ytterligare instruktioner finns i kolumn A i kalkylbladet BRÖLLOPSBUDGET. Den här texten har avsiktligt dolts. Om du vill ta bort texten markerar du kolumn A och väljer sedan TA BORT. Om du vill att texten ska visas markerar du kolumn A och ändrar sedan teckenfärg."]
[null,"För mer information om tabeller tryck på SKIFT och sedan på F10 i en tabell, välj alternativet TABELL och sedan ALTERNATIVTEXT."]

{"sheet":"Bröllopsbudget","index":1,"n_rows":93,"n_cols":4,"rows_kept":93,"merged":[[0,1,0,3],[2,1,2,3],[6,1,6,3],[15,1,15,3],[25,1,25,3],[34,1,34,3],[43,1,43,3],[50,1,50,3],[59,1,59,3],[68,1,68,3],[77,1,77,3],[85,1,85,3]]}
[null,"BRÖLLOPSBUDGET"]
[]
[null,"SUMMA UTGIFTER "]
[null,"Objekt ","Beräknade","Faktisk"]
[null,"Summa utgifter ",{"$f":"SUM(Klädsel[[#Totals],[Beräknad]],Dekorationer[[#Totals],[Beräknad]],Presenter[[#Totals],[Beräknad]],Blommor[[#Totals],[Beräknad]],Musik[[#Totals],[Beräknad]],Fotografering[[#Totals],[Beräknad]],Bröllopsfest[[#Totals],[Beräknad]],BrevpapperOchUtskrifter[[#Totals],[Beräknad]],Transport[[#Totals],[Beräknad]],ÖvrigaUtgifter[[#Totals],[Beräknad]])","v":0},{"$f":"SUM(Klädsel[[#Totals],[Faktisk]],Dekorationer[[#Totals],[Faktisk]],Presenter[[#Totals],[Faktisk]],Blommor[[#Totals],[Faktisk]],Musik[[#Totals],[Faktisk]],Fotografering[[#Totals],[Faktisk]],Bröllopsfest[[#Totals],[Faktisk]],BrevpapperOchUtskrifter[[#Totals],[Faktisk]],Transport[[#Totals],[Faktisk]],ÖvrigaUtgifter[[#Totals],[Faktisk]],)","v":0}]
[]
[null,"KLÄDSEL"]
[null,"Objekt ","Beräknad","Faktisk"]
[null,"Förlovningsring"]
[null,"Vigselringar"]
[null,"Brudklänning"]
[null,"Slöja/huvudbonad"]
[null,"Annat:"]
[null,"Totalt klädsel",{"$f":"SUBTOTAL(109,Klädsel[Beräknad])","v":0},{"$f":"SUBTOTAL(109,Klädsel[Faktisk])","v":0}]
[]
[null,"DEKORATIONER"]
[null,"Objekt ","Beräknad","Faktisk"]
[null,"Rosetter för kyrkbänkar/andra platser"]
[null,"Bordsdekorationer (exklusive blommor)"]
[null,"Ljus"]
[null,"Belysning"]
[null,"Ballonger"]
[null,"Annat:"]
[null,"Totalt dekorationer",{"$f":"SUBTOTAL(109,Dekorationer[Beräknad])","v":0},{"$f":"SUBTOTAL(109,Dekorationer[Faktisk])","v":0}]
[]
[null,"GÅVOR"]
[null,"Objekt ","Beräknad","Faktisk"]
[null,"Hjälppersonal"]
[null,"Brud och brudgum"]
[null,"Föräldrar"]
[null,"Övriga deltagare"]
[null,"Annat:"]
[null,"Totalt gåvor",{"$f":"SUBTOTAL(109,Presenter[Beräknad])","v":0},{"$f":"SUBTOTAL(109,Presenter[Faktisk])","v":0}]
[]
[null,"BLOMMOR"]
[null,"Objekt ","Beräknad","Faktisk"]
[null,"Buketter"]
[null,"Knapphålsblommor"]
[null,"Bröstbuketter"]
[null,"Ceremoni"]
[null,"Annat:"]
[null,"Totalt blommor",{"$f":"SUBTOTAL(109,Blommor[Beräknad])","v":0},{"$f":"SUBTOTAL(109,Blommor[Faktisk])","v":0}]
[]
[null,"MUSIK"]
[null,"Objekt ","Beräknad","Faktisk"]
[null,"Musiker för ceremonin"]
[null,"Band/DJ för mottagningen"]
[null,"Annat:"]
[null,"Totalt musik",{"$f":"SUBTOTAL(109,Musik[Beräknad])","v":0},{"$f":"SUBTOTAL(109,Musik[Faktisk])","v":0}]
[]
[null,"FOTOGRAFERING"]
[null,"Objekt ","Beräknad","Faktisk"]
[null,"Formellt"]
[null,"Informellt"]
[null,"Extra utskrifter"]
[null,"Fotoalbum"]
[null,"Annat:"]
[null,"Totalt fotografering",{"$f":"SUBTOTAL(109,Fotografering[Beräknad])","v":0},{"$f":"SUBTOTAL(109,Fotografering[Faktisk])","v":0}]
[]
[null,"MOTTAGNING "]
[null,"Objekt ","Beräknad","Faktisk"]
[null,"Avgifter för rum/sal"]
[null,"Bord och stolar"]
[null,"Mat"]
[null,"Dukar"]
[null,"Annat:"]
[null,"Totalt mottagning (exklusive musik och dekorationer)",{"$f":"SUBTOTAL(109,Bröllopsfest[Beräknad])","v":0},{"$f":"SUBTOTAL(109,Bröllopsfest[Faktisk])","v":0}]
[]
[null,"TRYCKSAKER"]
[null,"Objekt ","Beräknad","Faktisk"]
[null,"Inbjudningar"]
[null,"Meddelanden"]
[null,"Tackkort"]
[null,"Personligt brevpapper"]
[null,"Annat:"]
[null,"Totalt trycksaker",{"$f":"SUBTOTAL(109,BrevpapperOchUtskrifter[Beräknad])","v":0},{"$f":"SUBTOTAL(109,BrevpapperOchUtskrifter[Faktisk])","v":0}]
[]
[null,"TRANSPORT"]
[null,"Objekt ","Beräknad","Faktisk"]
[null,"Limousiner/vagnar"]
[null,"Parkering"]
[null,"Taxibilar"]
[null,"Annat:"]
[null,"Totalt transport",{"$f":"SUBTOTAL(109,Transport[Beräknad])","v":0},{"$f":"SUBTOTAL(109,Transport[Faktisk])","v":0}]
[]
[null,"ÖVRIGA UTGIFTER"]
[null,"Objekt ","Beräknad","Faktisk"]
[null,"Officiant"]
[null,"Avgift för kyrka/ceremoniplats"]
[null,"Bröllopskoordinator"]
[null,"Middag dagen före/rehearsal dinner"]
[null,"Annat:"]
[null,"Totalt övriga utgifter",{"$f":"SUBTOTAL(109,ÖvrigaUtgifter[Beräknad])","v":0},{"$f":"SUBTOTAL(109,ÖvrigaUtgifter[Faktisk])","v":0}]